[Event "11th LCC FIDE Open 2019"]
[Site "London"]
[Date "2019.11.29"]
[Round "1.34"]
[White "Dias, Savin"]
[Black "Van Zyl-Rudd, Jack"]
[Result "0-1"]
[ECO "B00"]
[WhiteElo "1916"]
[BlackElo "2290"]
[Annotator "ChessBase"]
[PlyCount "80"]
[EventDate "2019.11.29"]
[EventType "swiss"]
[EventCountry "ENG"]
[SourceTitle "playchess.com"]
[Source "ChessBase"]
[SourceQuality "1"]
[TimeControl "40/5400+30:1800+30"]

1. e4 {[%emt 0:00:00]} Nc6 {[%emt 0:00:00]} 2. d4 {[%emt 0:00:00]} d5 {[%emt 0:00:10]} 3. e5 {[%emt 0:00:00]} Bf5 {[%emt 0:00:07]} 4. Nf3 {[%emt 0:00:54]} e6 {[%emt 0:00:08]} 5. Bd3 {[%emt 0:01:32]} Nge7 {[%emt 0:00:08]} 6. Bg5 {[%emt 0:03:20]} h6 {[%emt 0:06:34]} 7. Bxf5 {[%emt 0:07:57]} hxg5 {[%emt 0:00:09]} 8. Bd3 {[%emt 0:03:54]} g4 {[%emt 0:01:58]} 9. Nfd2 {[%emt 0:07:13]} g3 {[%emt 0:02:25]} 10. fxg3 {[%emt 0:00:55]} Nxd4 {[%emt 0:01:31]} 11. O-O {[%emt 0:01:49]} Nef5 {[%emt 0:14:53]} 12. Bxf5 {[%emt 0:01:20]} Nxf5 {[%emt 0:00:23]} 13. Qf3 {[%emt 0:03:15]} Bc5+ {[%emt 0:08:40]} 14. Kh1 {[%emt 0:00:07]} Qg5 {[%emt 0:00:28]} 15. g4 {[%emt 0:03:44]} Qh4 {[%emt 0:01:39]} 16. Qh3 {[%emt 0:00:48]} Ne3 {[%emt 0:01:24]} 17. Qxh4 {[%emt 0:00:47]} Rxh4 {[%emt 0:00:06]} 18. Rc1 {[%emt 0:01:00]} Nxg4 {[%emt 0:01:21]} 19. Nf3 {[%emt 0:01:04]} Rh5 {[%emt 0:01:05]} 20. h3 {[%emt 0:00:43]} Nxe5 {[%emt 0:00:06]} 21. Nxe5 {[%emt 0:00:36]} Rxe5 {[%emt 0:00:06]} 22. Nc3 {[%emt 0:02:18]} d4 {[%emt 0:01:08]} 23. Nb5 {[%emt 0:01:05]} O-O-O {[%emt 0:00:45]} 24. Rd1 {[%emt 0:02:08]} a6 {[%emt 0:00:13]} 25. Na3 {[%emt 0:00:06]} Bxa3 {[%emt 0:00:01]} 26. bxa3 {[%emt 0:00:07]} Re2 {[%emt 0:00:04]} 27. Rac1 {[%emt 0:00:39]} Rd5 {[%emt 0:00:12]} 28. Rf1 {[%emt 0:00:24]} f6 {[%emt 0:00:08]} 29. Rf3 {[%emt 0:00:16]} Rc5 {[%emt 0:00:14]} 30. Rg3 {[%emt 0:00:18]} g5 {[%emt 0:00:05]} 31. Rf3 {[%emt 0:00:05]} Rcxc2 {[%emt 0:00:18]} 32. Rg1 {[%emt 0:00:13]} f5 {[%emt 0:00:24]} 33. Rg3 {[%emt 0:00:07]} Rxa2 {[%emt 0:00:09]} 34. Rxg5 {[%emt 0:00:03]} d3 {[%emt 0:00:06]} 35. Rg8+ {[%emt 0:01:13]} Kd7 {[%emt 0:00:06]} 36. Rd1 {[%emt 0:01:33]} d2 {[%emt 0:00:03]} 37. Kh2 {[%emt 0:00:06]} Re1 {[%emt 0:00:04]} 38. Rxd2+ {[%emt 0:00:02]} Rxd2 {[%emt 0:00:06]} 39. h4 {[%emt 0:00:03]} Re4 {[%emt 0:00:05]} 40. Kg3 {[%emt 0:00:13]} Rd3+ {[%emt 0:00:15] Rg5} 0-1

[Event "11th LCC FIDE Open 2019"]
[Site "London"]
[Date "2019.11.29"]
[Round "1.35"]
[White "Cumming, Rhys"]
[Black "Phillips, Owen S"]
[Result "1-0"]
[ECO "C03"]
[WhiteElo "2284"]
[BlackElo "1902"]
[Annotator "ChessBase"]
[PlyCount "77"]
[EventDate "2019.11.29"]
[EventType "swiss"]
[EventCountry "ENG"]
[SourceTitle "playchess.com"]
[Source "ChessBase"]
[SourceQuality "1"]
[TimeControl "40/5400+30:1800+30"]

1. e4 {[%emt 0:00:00]} e6 {[%emt 0:00:00]} 2. d4 {[%emt 0:00:00]} d5 {[%emt 0:00:00]} 3. Nd2 {[%emt 0:01:07]} e5 {[%emt 0:00:06]} 4. dxe5 {[%emt 0:05:33]} dxe4 {[%emt 0:00:12]} 5. Qe2 {[%emt 0:07:57]} Qd5 {[%emt 0:03:08]} 6. Qxe4 {[%emt 0:03:17]} Qxe4+ {[%emt 0:00:16]} 7. Nxe4 {[%emt 0:00:05]} Nc6 {[%emt 0:02:22]} 8. Bf4 {[%emt 0:14:01]} Nge7 {[%emt 0:06:36]} 9. Nf3 {[%emt 0:10:32]} Ng6 {[%emt 0:10:38]} 10. Bg3 {[%emt 0:01:02]} Bb4+ {[%emt 0:04:39]} 11. c3 {[%emt 0:01:45]} Be7 {[%emt 0:01:00]} 12. Bd3 {[%emt 0:04:37]} Bg4 {[%emt 0:01:48]} 13. Ned2 {[%emt 0:04:35]} O-O-O {[%emt 0:01:49]} 14. Bc2 {[%emt 0:07:32]} Rd7 {[%emt 0:15:28]} 15. h3 {[%emt 0:07:07]} Be6 {[%emt 0:00:23]} 16. Nb3 {[%emt 0:05:52]} Kb8 {[%emt 0:02:55]} 17. O-O {[%emt 0:01:25]} Bd5 {[%emt 0:06:04]} 18. Nbd4 {[%emt 0:01:20]} Bc5 {[%emt 0:01:50]} 19. Ba4 {[%emt 0:03:43]} Bxd4 {[%emt 0:09:35]} 20. Nxd4 {[%emt 0:00:38]} Rdd8 {[%emt 0:03:32]} 21. Nxc6+ {[%emt 0:00:25]} bxc6 {[%emt 0:01:44]} 22. Rfd1 {[%emt 0:02:57]} h5 {[%emt 0:03:07]} 23. Rd2 {[%emt 0:02:13]} h4 {[%emt 0:00:44]} 24. Bh2 {[%emt 0:00:02]} Kb7 {[%emt 0:05:04]} 25. Rad1 {[%emt 0:01:54]} Rdg8 {[%emt 0:01:06]} 26. Rd4 {[%emt 0:03:49]} Rh5 {[%emt 0:00:47]} 27. c4 {[%emt 0:05:58]} Be6 {[%emt 0:00:40]} 28. Re4 {[%emt 0:01:10]} Rg5 {[%emt 0:01:03]} 29. f4 {[%emt 0:01:08]} Rh5 {[%emt 0:00:47]} 30. Rd3 {[%emt 0:01:17]} Ne7 {[%emt 0:00:58]} 31. Bd1 {[%emt 0:00:49]} Rh6 {[%emt 0:02:47]} 32. Bf3 {[%emt 0:00:34]} Kb6 {[%emt 0:05:09]} 33. Rb3+ {[%emt 0:00:46]} Ka6 {[%emt 0:02:04]} 34. Rb4 {[%emt 0:01:10]} c5 {[%emt 0:00:28]} 35. Rb3 {[%emt 0:00:32]} Nc6 {[%emt 0:01:16]} 36. Rb5 {[%emt 0:00:32]} Nd4 {[%emt 0:02:01]} 37. Rxc5 {[%emt 0:00:06]} Kb6 {[%emt 0:00:20]} 38. b4 {[%emt 0:00:16]} Rd8 {[%emt 0:00:45]} 39. Rxd4 {[%emt 0:00:33]} 1-0

[Event "11th LCC FIDE Open 2019"]
[Site "London"]
[Date "2019.11.29"]
[Round "1.37"]
[White "Stoyanov, Viktor"]
[Black "Finn, Peter"]
[Result "1-0"]
[ECO "B30"]
[WhiteElo "2272"]
[BlackElo "1895"]
[Annotator "ChessBase"]
[PlyCount "155"]
[EventDate "2019.11.29"]
[EventType "swiss"]
[EventCountry "ENG"]
[SourceTitle "playchess.com"]
[Source "ChessBase"]
[SourceQuality "1"]
[TimeControl "40/5400+30:1800+30"]

1. e4 {[%emt 0:00:00]} c5 {[%emt 0:00:00]} 2. Nc3 {[%emt 0:00:00]} e6 {[%emt 0:00:15]} 3. Nf3 {[%emt 0:00:24]} Nc6 {[%emt 0:00:40]} 4. Bb5 {[%emt 0:01:31]} Nge7 {[%emt 0:00:59]} 5. O-O {[%emt 0:02:19]} g6 {[%emt 0:05:31]} 6. d4 {[%emt 0:07:43]} cxd4 {[%emt 0:00:56]} 7. Nxd4 {[%emt 0:00:06]} Bg7 {[%emt 0:01:14]} 8. Nxc6 {[%emt 0:02:51]} bxc6 {[%emt 0:15:31]} 9. Bd3 {[%emt 0:06:25]} O-O {[%emt 0:11:53]} 10. Rb1 {[%emt 0:03:25]} Rb8 {[%emt 0:09:11]} 11. Na4 {[%emt 0:09:04]} d6 {[%emt 0:06:50]} 12. b3 {[%emt 0:02:45]} c5 {[%emt 0:08:39]} 13. Bb2 {[%emt 0:01:58]} Bd7 {[%emt 0:01:57]} 14. Bxg7 {[%emt 0:00:39]} Kxg7 {[%emt 0:00:06]} 15. Nb2 {[%emt 0:00:50]} d5 {[%emt 0:00:52]} 16. Qe1 {[%emt 0:03:02]} Kg8 {[%emt 0:11:42]} 17. Qc3 {[%emt 0:12:49]} c4 {[%emt 0:07:47]} 18. bxc4 {[%emt 0:00:30]} dxe4 {[%emt 0:00:10]} 19. Bxe4 {[%emt 0:00:29]} Qb6 {[%emt 0:00:20]} 20. c5 {[%emt 0:03:32]} Qb4 {[%emt 0:00:28]} 21. Qe3 {[%emt 0:03:08]} Rfc8 {[%emt 0:00:58]} 22. Rfd1 {[%emt 0:01:02]} Be8 {[%emt 0:01:28]} 23. Rdc1 {[%emt 0:13:13]} Qxc5 {[%emt 0:02:11]} 24. Qxc5 {[%emt 0:00:11]} Rxc5 {[%emt 0:00:02]} 25. Nd1 {[%emt 0:00:24]} Rbc8 {[%emt 0:02:56]} 26. Ne3 {[%emt 0:02:12]} Bc6 {[%emt 0:00:47]} 27. Bxc6 {[%emt 0:00:48]} Nxc6 {[%emt 0:00:09]} 28. Rd1 {[%emt 0:01:25]} Ra5 {[%emt 0:01:59]} 29. Rb2 {[%emt 0:00:08]} Ne5 {[%emt 0:00:30]} 30. Rd4 {[%emt 0:01:19]} Rc3 {[%emt 0:00:29]} 31. Nd1 {[%emt 0:01:46]} Rca3 {[%emt 0:00:28]} 32. f4 {[%emt 0:00:40]} Nc6 {[%emt 0:00:12]} 33. Rd6 {[%emt 0:00:23]} Ne7 {[%emt 0:01:47]} 34. Rd7 {[%emt 0:01:54]} Rd5 {[%emt 0:00:16]} 35. Rxd5 {[%emt 0:01:20]} Nxd5 {[%emt 0:00:05]} 36. g3 {[%emt 0:00:21]} a5 {[%emt 0:00:12]} 37. Kf2 {[%emt 0:05:16]} Kf8 {[%emt 0:00:41]} 38. Ke2 {[%emt 0:00:52]} Nb4 {[%emt 0:00:31]} 39. c3 {[%emt 0:00:25]} Nxa2 {[%emt 0:01:52]} 40. Kd2 {[%emt 0:00:10]} Ke7 {[%emt 0:00:55]} 41. Kc2 {[%emt 0:30:07]} Kf6 {[%emt 0:31:04]} 42. Rb7 {[%emt 0:00:12]} Nxc3 {[%emt 0:00:31]} 43. Nxc3 {[%emt 0:00:05]} Ra1 {[%emt 0:00:16]} 44. Kd3 {[%emt 0:01:01]} h6 {[%emt 0:02:33]} 45. h3 {[%emt 0:00:30]} g5 {[%emt 0:00:50]} 46. fxg5+ {[%emt 0:01:10]} hxg5 {[%emt 0:00:10]} 47. Rb5 {[%emt 0:00:51]} Kg6 {[%emt 0:01:31]} 48. Ke2 {[%emt 0:02:23]} Rh1 {[%emt 0:00:55]} 49. Kf3 {[%emt 0:00:20]} Rxh3 {[%emt 0:00:39]} 50. Kg4 {[%emt 0:00:35]} Rh5 {[%emt 0:00:10]} 51. Rxa5 {[%emt 0:00:16]} f5+ {[%emt 0:00:13]} 52. Kf3 {[%emt 0:00:03]} Rh1 {[%emt 0:00:33]} 53. Ne2 {[%emt 0:00:37]} Kf6 {[%emt 0:00:00]} 54. Nd4 {[%emt 0:00:00]} Rd1 {[%emt 0:00:00]} 55. Ne2 {[%emt 0:00:00]} Rd3+ {[%emt 0:00:00]} 56. Kf2 {[%emt 0:00:00]} Rb3 {[%emt 0:00:00]} 57. Ra6 {[%emt 0:00:00]} Rb2 {[%emt 0:00:00]} 58. Ke3 {[%emt 0:00:00]} Rb3+ {[%emt 0:00:00]} 59. Kd2 {[%emt 0:00:00]} Rb8 {[%emt 0:00:00]} 60. Nd4 {[%emt 0:00:00]} Re8 {[%emt 0:00:00]} 61. Kd3 {[%emt 0:00:00]} Re7 {[%emt 0:00:00]} 62. Rd6 {[%emt 0:00:00]} Ke5 {[%emt 0:00:00]} 63. Rd8 {[%emt 0:00:00]} Kf6 {[%emt 0:00:00]} 64. Rf8+ {[%emt 0:00:00]} Kg7 {[%emt 0:00:00]} 65. Rc8 {[%emt 0:00:00]} Kf6 {[%emt 0:00:00]} 66. Kc4 {[%emt 0:00:00]} Ra7 {[%emt 0:00:00]} 67. Rf8+ {[%emt 0:00:00]} Rf7 {[%emt 0:00:00]} 68. Rxf7+ {[%emt 0:00:00]} Kxf7 {[%emt 0:00:00]} 69. Nc6 {[%emt 0:00:00]} Kf6 {[%emt 0:00:00]} 70. Kd4 {[%emt 0:00:00]} g4 {[%emt 0:00:00]} 71. Ne5 {[%emt 0:00:00]} Kg5 {[%emt 0:00:00]} 72. Ke3 {[%emt 0:00:00]} f4+ {[%emt 0:00:00]} 73. gxf4+ {[%emt 0:00:00]} Kf5 {[%emt 0:00:00]} 74. Nc4 {[%emt 0:00:00]} g3 {[%emt 0:00:00]} 75. Kf3 {[%emt 0:00:00]} g2 {[%emt 0:00:00]} 76. Ne3+ {[%emt 0:00:00]} Kg6 {[%emt 0:00:00]} 77. Kxg2 {[%emt 0:00:00]} Kf6 {[%emt 0:00:34]} 78. Kf3 {[%emt 0:00:00]} 1-0

[Event "11th LCC FIDE Open 2019"]
[Site "London"]
[Date "2019.11.29"]
[Round "1.38"]
[White "Patel, Rishi"]
[Black "Czerw, Dawid"]
[Result "0-1"]
[ECO "B48"]
[WhiteElo "1891"]
[BlackElo "2255"]
[Annotator "ChessBase"]
[PlyCount "92"]
[EventDate "2019.11.29"]
[EventType "swiss"]
[EventCountry "ENG"]
[SourceTitle "playchess.com"]
[Source "ChessBase"]
[SourceQuality "1"]
[TimeControl "40/5400+30:1800+30"]

1. e4 {[%emt 0:03:18]} c5 {[%emt 0:00:45]} 2. Nf3 {[%emt 0:00:07]} e6 {[%emt 0:00:04]} 3. d4 {[%emt 0:00:38]} cxd4 {[%emt 0:00:06]} 4. Nxd4 {[%emt 0:00:05]} Nc6 {[%emt 0:00:06]} 5. Be3 {[%emt 0:00:50]} Qc7 {[%emt 0:02:03]} 6. Nc3 {[%emt 0:01:05]} a6 {[%emt 0:00:05]} 7. g3 {[%emt 0:01:22]} d6 {[%emt 0:01:52]} 8. Bg2 {[%emt 0:00:15]} Bd7 {[%emt 0:00:08]} 9. Qd2 {[%emt 0:00:52]} Ne5 {[%emt 0:08:30]} 10. f4 {[%emt 0:14:02]} Nc4 {[%emt 0:01:24]} 11. Qc1 {[%emt 0:00:15]} Rc8 {[%emt 0:09:01]} 12. Nde2 {[%emt 0:22:46]} Nxe3 {[%emt 0:01:47]} 13. Qxe3 {[%emt 0:00:07]} Nf6 {[%emt 0:02:02]} 14. O-O {[%emt 0:03:53]} Ng4 {[%emt 0:06:44]} 15. Qf3 {[%emt 0:03:12]} Qc5+ {[%emt 0:03:58]} 16. Kh1 {[%emt 0:01:23]} Ne3 {[%emt 0:01:30]} 17. b4 {[%emt 0:02:44]} Qb6 {[%emt 0:02:28]} 18. Qf2 {[%emt 0:06:04]} Rc6 {[%emt 0:09:29]} 19. Na4 {[%emt 0:05:05]} Qxb4 {[%emt 0:01:33]} 20. Qxe3 {[%emt 0:00:16]} Qxa4 {[%emt 0:00:06]} 21. c3 {[%emt 0:03:23]} Be7 {[%emt 0:05:52]} 22. Nd4 {[%emt 0:04:48]} Rc7 {[%emt 0:02:11]} 23. e5 {[%emt 0:00:49]} O-O {[%emt 0:09:01]} 24. f5 {[%emt 0:05:12]} dxe5 {[%emt 0:01:42]} 25. Qxe5 {[%emt 0:00:44]} Rc5 {[%emt 0:09:54]} 26. Qe3 {[%emt 0:02:15]} Bf6 {[%emt 0:00:51]} 27. fxe6 {[%emt 0:03:03]} fxe6 {[%emt 0:01:15]} 28. Rad1 {[%emt 0:03:53]} Re5 {[%emt 0:07:38]} 29. Qd2 {[%emt 0:01:04]} Bc8 {[%emt 0:00:40]} 30. Qb2 {[%emt 0:01:22]} b5 {[%emt 0:01:15]} 31. Rd2 {[%emt 0:01:35]} Qc4 {[%emt 0:01:24]} 32. Rdf2 {[%emt 0:00:37]} Re3 {[%emt 0:01:03]} 33. Ne2 {[%emt 0:01:43]} Rd8 {[%emt 0:01:12]} 34. Nd4 {[%emt 0:03:05]} Qxc3 {[%emt 0:01:38]} 35. Qxc3 {[%emt 0:00:35]} Rxc3 {[%emt 0:00:06]} 36. Nc6 {[%emt 0:00:25]} Rd6 {[%emt 0:01:57]} 37. Ne5 {[%emt 0:01:44]} Rc7 {[%emt 0:02:00]} 38. Kg1 {[%emt 0:01:21]} h6 {[%emt 0:01:11]} 39. Be4 {[%emt 0:01:06]} Rd8 {[%emt 0:01:24]} 40. Nf3 {[%emt 0:01:24]} Bb7 {[%emt 0:00:58]} 41. Bg6 {[%emt 0:01:35]} Rc3 {[%emt 0:02:26]} 42. Bh5 {[%emt 0:01:38]} Bd5 {[%emt 0:02:23]} 43. h4 {[%emt 0:01:38]} Rdc8 {[%emt 0:01:31]} 44. Kh2 {[%emt 0:00:36]} Rc2 {[%emt 0:00:24]} 45. a3 {[%emt 0:04:48]} Rxf2+ {[%emt 0:00:20]} 46. Rxf2 {[%emt 0:00:05]} Rc3 {[%emt 0:00:22]} 0-1

[Event "11th LCC FIDE Open 2019"]
[Site "London"]
[Date "2019.11.29"]
[Round "1.39"]
[White "Berry, Neil"]
[Black "Lohia, Sohum"]
[Result "1-0"]
[ECO "E62"]
[WhiteElo "2250"]
[BlackElo "1889"]
[Annotator "ChessBase"]
[PlyCount "49"]
[EventDate "2019.11.29"]
[EventType "swiss"]
[EventCountry "ENG"]
[SourceTitle "playchess.com"]
[Source "ChessBase"]
[SourceQuality "1"]
[TimeControl "40/5400+30:1800+30"]

1. d4 {[%emt 0:00:00]} Nf6 {[%emt 0:00:00]} 2. c4 {[%emt 0:00:00]} g6 {[%emt 0:00:00]} 3. g3 {[%emt 0:00:06]} Bg7 {[%emt 0:00:10]} 4. Bg2 {[%emt 0:00:09]} O-O {[%emt 0:00:14]} 5. Nc3 {[%emt 0:00:32]} d6 {[%emt 0:00:10]} 6. Nf3 {[%emt 0:00:28]} c6 {[%emt 0:00:32]} 7. O-O {[%emt 0:00:42]} Qa5 {[%emt 0:00:16]} 8. e4 {[%emt 0:01:35]} Bg4 {[%emt 0:00:44]} 9. h3 {[%emt 0:01:47]} Bxf3 {[%emt 0:00:13]} 10. Qxf3 {[%emt 0:00:53]} Nfd7 {[%emt 0:01:10]} 11. Rd1 {[%emt 0:05:21]} Qb4 {[%emt 0:05:17]} 12. b3 {[%emt 0:07:48]} c5 {[%emt 0:05:44]} 13. Nd5 {[%emt 0:06:05]} Qa5 {[%emt 0:03:52]} 14. Nxe7+ {[%emt 0:02:23]} Kh8 {[%emt 0:00:11]} 15. Bf4 {[%emt 0:06:56]} Bxd4 {[%emt 0:09:57]} 16. Bxd6 {[%emt 0:07:48]} Bxa1 {[%emt 0:07:13]} 17. Rxa1 {[%emt 0:01:01]} Nc6 {[%emt 0:09:22]} 18. Nxc6 {[%emt 0:11:11]} bxc6 {[%emt 0:00:08]} 19. e5 {[%emt 0:04:43]} Rac8 {[%emt 0:21:05]} 20. Bxf8 {[%emt 0:04:17]} Rxf8 {[%emt 0:01:12]} 21. Qxc6 {[%emt 0:01:18]} Qc3 {[%emt 0:06:15]} 22. Rd1 {[%emt 0:01:03]} Nxe5 {[%emt 0:01:15]} 23. Qxc5 {[%emt 0:00:30]} Kg8 {[%emt 0:00:58]} 24. Qd4 {[%emt 0:02:38]} Qxd4 {[%emt 0:03:38]} 25. Rxd4 {[%emt 0:00:07]} 1-0

[Event "11th LCC FIDE Open 2019"]
[Site "London"]
[Date "2019.11.29"]
[Round "1.40"]
[White "Hughes, Anthony"]
[Black "Blackburn, Jonathan Lb"]
[Result "0-1"]
[ECO "B07"]
[WhiteElo "1874"]
[BlackElo "2240"]
[Annotator "ChessBase"]
[PlyCount "97"]
[EventDate "2019.11.29"]
[EventType "swiss"]
[EventCountry "ENG"]
[SourceTitle "playchess.com"]
[Source "ChessBase"]
[SourceQuality "1"]
[TimeControl "40/5400+30:1800+30"]

1. e4 {[%emt 0:00:00]} d6 {[%emt 0:00:00]} 2. d4 {[%emt 0:00:00]} Nf6 {[%emt 0:00:00]} 3. Nc3 {[%emt 0:00:00]} c6 {[%emt 0:00:00]} 4. h3 {[%emt 0:01:51]} Qa5 {[%emt 0:00:58]} 5. Bd3 {[%emt 0:06:37]} e5 {[%emt 0:00:25]} 6. Nf3 {[%emt 0:01:39]} Nbd7 {[%emt 0:00:18]} 7. O-O {[%emt 0:02:17]} Be7 {[%emt 0:00:21]} 8. Ne2 {[%emt 0:05:38]} d5 {[%emt 0:04:34]} 9. dxe5 {[%emt 0:12:00]} Nxe4 {[%emt 0:12:24]} 10. e6 {[%emt 0:17:54]} fxe6 {[%emt 0:01:01]} 11. Bxe4 {[%emt 0:00:11]} dxe4 {[%emt 0:00:11]} 12. Nd2 {[%emt 0:04:43]} Nf6 {[%emt 0:04:30]} 13. Nc3 {[%emt 0:03:34]} e3 {[%emt 0:03:22]} 14. fxe3 {[%emt 0:01:39]} e5 {[%emt 0:01:26]} 15. Nde4 {[%emt 0:08:13]} O-O {[%emt 0:08:21]} 16. Nxf6+ {[%emt 0:01:58]} Rxf6 {[%emt 0:01:12]} 17. Rxf6 {[%emt 0:02:19]} Bxf6 {[%emt 0:00:44]} 18. Bd2 {[%emt 0:08:11]} Be7 {[%emt 0:04:55]} 19. Qh5 {[%emt 0:11:38]} Be6 {[%emt 0:04:45]} 20. Rf1 {[%emt 0:00:35]} g6 {[%emt 0:04:19]} 21. Qe2 {[%emt 0:05:51]} Qc5 {[%emt 0:03:51]} 22. b4 {[%emt 0:01:13]} Qb6 {[%emt 0:13:06]} 23. Ne4 {[%emt 0:00:50]} Qb5 {[%emt 0:01:37]} 24. Qxb5 {[%emt 0:01:02]} cxb5 {[%emt 0:00:03]} 25. Bc3 {[%emt 0:00:16]} Bf5 {[%emt 0:02:15]} 26. Nc5 {[%emt 0:00:22]} b6 {[%emt 0:02:05]} 27. Nd3 {[%emt 0:00:11]} Rc8 {[%emt 0:02:53]} 28. Bxe5 {[%emt 0:00:16]} Rxc2 {[%emt 0:00:07]} 29. Nf4 {[%emt 0:00:26]} Be4 {[%emt 0:01:07]} 30. Rd1 {[%emt 0:00:26]} g5 {[%emt 0:03:48]} 31. Nd5 {[%emt 0:00:35]} Rxg2+ {[%emt 0:01:57]} 32. Kf1 {[%emt 0:00:03]} Bxd5 {[%emt 0:00:07]} 33. Rxd5 {[%emt 0:00:04]} Rxa2 {[%emt 0:00:11]} 34. Rxb5 {[%emt 0:00:31]} Kf7 {[%emt 0:00:48]} 35. Bb8 {[%emt 0:01:22]} Kg6 {[%emt 0:01:23]} 36. Bg3 {[%emt 0:00:45]} h5 {[%emt 0:02:17]} 37. Bf2 {[%emt 0:00:13]} Rb2 {[%emt 0:00:23]} 38. Be1 {[%emt 0:01:18]} Bc5 {[%emt 0:00:17]} 39. Bc3 {[%emt 0:00:20]} Rb1+ {[%emt 0:00:05]} 40. Ke2 {[%emt 0:00:15]} a6 {[%emt 0:00:08]} 41. Rxc5 {[%emt 0:04:12]} bxc5 {[%emt 0:00:12]} 42. bxc5 {[%emt 0:00:11]} Kf5 {[%emt 0:00:26]} 43. Kd3 {[%emt 0:00:33]} g4 {[%emt 0:01:43]} 44. e4+ {[%emt 0:02:03]} Ke6 {[%emt 0:00:06]} 45. hxg4 {[%emt 0:01:22]} hxg4 {[%emt 0:00:03]} 46. Ba5 {[%emt 0:03:53]} g3 {[%emt 0:00:19]} 47. c6 {[%emt 0:01:54]} g2 {[%emt 0:00:07]} 48. c7 {[%emt 0:00:09]} Kd7 {[%emt 0:00:05]} 49. Kd4 {[%emt 0:00:26]} 0-1

[Event "11th LCC FIDE Open 2019"]
[Site "London"]
[Date "2019.11.29"]
[Round "1.41"]
[White "Lee, Qing Aun"]
[Black "Gopakumar, Siddharth"]
[Result "1-0"]
[ECO "D01"]
[WhiteElo "2228"]
[BlackElo "1848"]
[Annotator "ChessBase"]
[PlyCount "49"]
[EventDate "2019.11.29"]
[EventType "swiss"]
[EventCountry "ENG"]
[SourceTitle "playchess.com"]
[Source "ChessBase"]
[SourceQuality "1"]
[TimeControl "40/5400+30:1800+30"]

1. d4 {[%emt 0:00:21]} d5 {[%emt 0:00:00]} 2. Nc3 {[%emt 0:00:11]} Nf6 {[%emt 0:00:09]} 3. Bg5 {[%emt 0:00:10]} Bf5 {[%emt 0:00:38]} 4. f3 {[%emt 0:11:31]} c6 {[%emt 0:13:40]} 5. Bxf6 {[%emt 0:04:01]} exf6 {[%emt 0:00:51]} 6. e4 {[%emt 0:00:12]} Be6 {[%emt 0:10:39]} 7. Qd3 {[%emt 0:10:24]} Bb4 {[%emt 0:08:23]} 8. O-O-O {[%emt 0:03:41]} O-O {[%emt 0:04:33]} 9. Nge2 {[%emt 0:00:30]} dxe4 {[%emt 0:03:42]} 10. fxe4 {[%emt 0:01:21]} f5 {[%emt 0:04:12]} 11. d5 {[%emt 0:11:44]} fxe4 {[%emt 0:09:14]} 12. Qxe4 {[%emt 0:01:05]} Bxc3 {[%emt 0:02:41]} 13. dxe6 {[%emt 0:16:00]} Bxb2+ {[%emt 0:01:33]} 14. Kxb2 {[%emt 0:00:07]} Qxd1 {[%emt 0:00:05]} 15. Nd4 {[%emt 0:05:03]} fxe6 {[%emt 0:05:06]} 16. Bd3 {[%emt 0:03:52]} Qh5 {[%emt 0:00:06]} 17. Nxe6 {[%emt 0:03:00]} Re8 {[%emt 0:06:15]} 18. g4 {[%emt 0:09:30]} Qh4 {[%emt 0:00:27]} 19. Rf1 {[%emt 0:03:00]} Na6 {[%emt 0:04:35]} 20. Bc4 {[%emt 0:05:09]} Kh8 {[%emt 0:00:24]} 21. Qd4 {[%emt 0:01:20]} Qe7 {[%emt 0:00:53]} 22. Bb3 {[%emt 0:04:17]} Nc7 {[%emt 0:02:15]} 23. Nxc7 {[%emt 0:00:13]} Qxc7 {[%emt 0:00:02]} 24. Rf7 {[%emt 0:00:06]} Qe5 {[%emt 0:00:21]} 25. Rf8+ {[%emt 0:00:04]} 1-0

[Event "11th LCC FIDE Open 2019"]
[Site "London"]
[Date "2019.11.29"]
[Round "1.42"]
[White "Zhao, Haolin"]
[Black "McClement, Andrew"]
[Result "0-1"]
[ECO "B23"]
[WhiteElo "1842"]
[BlackElo "2226"]
[Annotator "ChessBase"]
[PlyCount "96"]
[EventDate "2019.11.29"]
[EventType "swiss"]
[EventCountry "ENG"]
[SourceTitle "playchess.com"]
[Source "ChessBase"]
[SourceQuality "1"]
[TimeControl "40/5400+30:1800+30"]

1. e4 {[%emt 0:15:49]} c5 {[%emt 0:00:00]} 2. Nc3 {[%emt 0:00:06]} Nc6 {[%emt 0:00:00]} 3. f4 {[%emt 0:00:07]} g6 {[%emt 0:00:00]} 4. Nf3 {[%emt 0:00:08]} Bg7 {[%emt 0:00:00]} 5. Bb5 {[%emt 0:00:10]} Nd4 {[%emt 0:00:00]} 6. O-O {[%emt 0:00:08]} Nxb5 {[%emt 0:00:00]} 7. Nxb5 {[%emt 0:00:06]} d5 {[%emt 0:00:02]} 8. exd5 {[%emt 0:00:16]} a6 {[%emt 0:00:04]} 9. Nc3 {[%emt 0:00:07]} Nf6 {[%emt 0:00:04]} 10. d4 {[%emt 0:00:10]} Nxd5 {[%emt 0:00:04]} 11. dxc5 {[%emt 0:00:13]} Nxc3 {[%emt 0:00:05]} 12. Qxd8+ {[%emt 0:00:12]} Kxd8 {[%emt 0:00:05]} 13. bxc3 {[%emt 0:00:07]} Bxc3 {[%emt 0:00:03]} 14. Rd1+ {[%emt 0:00:08]} Kc7 {[%emt 0:00:16]} 15. Rb1 {[%emt 0:00:16]} Be6 {[%emt 0:11:42]} 16. Bb2 {[%emt 0:08:21]} Bxb2 {[%emt 0:00:45]} 17. Rxb2 {[%emt 0:01:07]} Rad8 {[%emt 0:02:04]} 18. Nd4 {[%emt 0:02:24]} Bc4 {[%emt 0:01:05]} 19. c3 {[%emt 0:00:50]} Rd5 {[%emt 0:10:10]} 20. Rdb1 {[%emt 0:03:06]} Rb8 {[%emt 0:00:09]} 21. c6 {[%emt 0:00:32]} b6 {[%emt 0:00:13]} 22. Re1 {[%emt 0:04:25]} e6 {[%emt 0:02:26]} 23. a4 {[%emt 0:02:30]} Rc5 {[%emt 0:03:01]} 24. Re3 {[%emt 0:07:58]} Bd5 {[%emt 0:03:48]} 25. Kf2 {[%emt 0:03:16]} Bxc6 {[%emt 0:01:42]} 26. Nxc6 {[%emt 0:01:44]} Rxc6 {[%emt 0:00:11]} 27. Rd3 {[%emt 0:00:17]} Rd8 {[%emt 0:00:13]} 28. Ke3 {[%emt 0:00:36]} Rxd3+ {[%emt 0:01:01]} 29. Kxd3 {[%emt 0:00:06]} Rd6+ {[%emt 0:01:58]} 30. Kc4 {[%emt 0:01:36]} Rd1 {[%emt 0:02:27]} 31. g3 {[%emt 0:04:06]} Kc6 {[%emt 0:01:10]} 32. Re2 {[%emt 0:01:12]} h5 {[%emt 0:00:59]} 33. Rg2 {[%emt 0:01:18]} Rf1 {[%emt 0:01:14]} 34. Rd2 {[%emt 0:00:25]} h4 {[%emt 0:02:04]} 35. Rd3 {[%emt 0:02:52]} Rf2 {[%emt 0:00:27]} 36. Kd4 {[%emt 0:04:49]} Rxh2 {[%emt 0:02:07]} 37. gxh4 {[%emt 0:00:23]} Rxh4 {[%emt 0:00:14]} 38. Ke5 {[%emt 0:00:30]} Rh5+ {[%emt 0:00:02]} 39. Ke4 {[%emt 0:01:02]} Ra5 {[%emt 0:01:24]} 40. Rd4 {[%emt 0:00:30]} Rc5 {[%emt 0:00:07]} 41. Rd8 {[%emt 0:31:29]} Rc4+ {[%emt 0:31:06]} 42. Ke5 {[%emt 0:00:10]} Rxa4 {[%emt 0:00:14]} 43. Rf8 {[%emt 0:00:36]} Ra5+ {[%emt 0:00:08]} 44. Ke4 {[%emt 0:00:33]} Rf5 {[%emt 0:00:02]} 45. Ra8 {[%emt 0:00:29]} a5 {[%emt 0:00:06]} 46. Rd8 {[%emt 0:01:03]} a4 {[%emt 0:00:46]} 47. Rd4 {[%emt 0:00:24]} a3 {[%emt 0:00:07]} 48. Ra4 {[%emt 0:00:37]} Ra5 {[%emt 0:00:07]} 0-1